bitfinex/quotes_SOLUSD_20250305
["timestamp","ask_amount","ask_price","bid_price","bid_amount"]
[1741187680185,30.0,141.96,141.9,0.28432314]
[1741187680370,30.0,141.96,141.89,62.13778175]
[1741187680371,30.0,141.96,141.89,4.7171]
[1741187680582,31.4088,141.96,141.87,0.28432314]
[1741187680766,30.0,141.96,141.88,1.47957315]
[1741187681155,30.0,141.96,141.89,0.28432314]
[1741187681358,30.0,141.96,141.9,50.23122153]
[1741187681573,30.0,141.96,141.91,0.28432314]
[1741187682284,30.0,141.96,141.92,55.79808797]
[1741187682455,30.03,141.96,141.92,57.27720458]
[1741187682763,30.03,141.96,141.95,0.28432314]
[1741187682960,30.03,141.96,141.95,49.03621111]
[1741187683273,30.03,141.96,141.95,0.28432314]
[1741187683476,30.03,141.96,141.94,1.4788033]
[1741187683654,30.03,141.96,141.93,0.28432314]
[1741187684466,30.03,141.96,141.91,7.18876157]
[1741187684995,30.03,141.96,141.89,7.0476]
[1741187685364,31.4388,141.96,141.89,7.0476]
[1741187685559,30.03,141.96,141.9,50.51565061]
[1741187685754,30.03,141.96,141.93,0.28432314]
[1741187686255,30.03,141.96,141.92,0.14216157]
[1741187686458,30.03,141.96,141.91,7.18866157]
[1741187687072,30.03,141.96,141.92,0.14216157]
[1741187688289,30.03,141.96,141.94,0.14216157]
[1741187688468,30.03,141.96,141.95,0.14216157]
[1741187688880,30.03,141.96,141.95,312.28432314]
[1741187689785,30.03,141.96,141.95,361.03621111]
[1741187689989,0.03,142.05,141.95,361.03621111]
[1741187690168,0.03,142.05,141.97,49.03621111]
[1741187690371,0.03,142.05,141.98,1.47841002]
[1741187690997,0.03,142.05,141.98,50.23029799]
[1741187691299,0.03,142.05,141.99,49.03621111]
[1741187691478,0.03,142.05,142.0,1.47824323]
[1741187691673,0.03,142.05,142.0,50.2301312]
[1741187691909,0.03,142.05,142.0,1.47824323]
[1741187692311,0.03,142.05,141.96,0.28432314]
[1741187692483,0.03,142.05,141.95,1.47863116]
[1741187693009,0.03,142.05,141.96,0.28432314]
[1741187693183,0.03,142.05,141.99,48.75188797]
[1741187693378,0.03,142.05,141.99,50.23010898]
[1741187693580,0.03,142.05,142.0,48.75188797]
[1741187693801,0.03,142.05,141.99,50.23010898]
[1741187694004,0.03,142.05,141.99,1.47822101]
[1741187694193,0.03,142.05,141.99,50.23010898]
[1741187694390,0.03,142.05,142.0,0.28432314]
[1741187694591,0.03,142.05,142.0,1.76245354]
[1741187695003,0.03,142.05,142.01,48.75188797]
[1741187695188,0.03,142.05,142.0,1.76245354]
[1741187695390,0.03,142.05,142.0,1.4781304]
[1741187695588,0.03,142.05,141.99,360.75188797]
[1741187695795,0.03,142.05,141.99,312.0]
[1741187696180,0.03,142.05,142.03,48.75188797]
[1741187696386,0.03,142.05,142.04,1.47783228]
[1741187696886,0.03,142.05,142.04,50.51404339]
[1741187697292,0.03,142.11,142.05,0.28432314]
[1741187697587,0.03,142.11,142.04,64.05724339]
[1741187697588,0.03,142.11,142.08,48.75188797]
[1741187697787,0.03,142.11,142.09,1.47730012]
[1741187698314,0.03,142.11,142.08,1.47732078]
[1741187699016,0.03,142.11,142.09,0.28432314]
[1741187699220,0.03,142.11,142.09,1.76151568]
[1741187699920,0.03,142.11,142.09,312.0]
[1741187700290,0.03,142.11,142.05,48.75188797]
[1741187700615,0.03,142.11,142.04,15.16309621]
[1741187700817,0.03,142.11,142.04,70.95508418]
[1741187701007,0.03,142.11,142.07,0.28432314]
[1741187701211,0.03,142.11,142.1,48.75188797]
[1741187701513,0.03,142.11,142.06,49.03621111]
[1741187701692,0.03,142.11,142.06,1.47743908]
[1741187701894,0.03,142.11,142.05,1.4776175]
[1741187702211,0.03,142.11,142.02,48.75188797]
[1741187702421,0.03,142.11,141.99,1.47797989]
[1741187702720,0.03,142.11,141.96,1.47838093]
[1741187702721,18.933972,142.1,141.96,1.47838093]
[1741187702922,18.933972,142.1,141.95,1.47853261]
[1741187703124,0.28432314,142.1,141.95,50.23042058]
[1741187703319,0.28432314,142.1,141.97,312.0]
[1741187703525,0.28432314,142.1,141.98,50.23034634]
[1741187704027,0.03,142.11,142.02,0.14216157]
[1741187704209,0.03,142.11,142.03,48.75188797]
[1741187704523,0.03,142.11,142.02,48.75188797]
[1741187704700,0.03,142.11,142.01,1.4779595]
[1741187704900,0.17216157,142.11,141.96,1.4781369]
[1741187705115,0.03,142.11,141.98,48.75188797]
[1741187705316,0.03,142.11,141.99,1.47815929]
[1741187705820,0.03,142.11,141.95,1.47832881]
[1741187706301,0.03,142.11,141.95,8.52302881]
[1741187706632,18.963972,142.11,141.95,57.27491678]
[1741187706825,18.963972,142.11,141.96,49.03621111]
[1741187707125,18.963972,142.11,141.97,1.47850087]
[1741187707420,18.963972,142.11,141.96,0.28432314]
[1741187707621,18.963972,142.11,141.96,1.47859177]
[1741187707920,18.933972,142.09,141.93,1.47862969]
[1741187708302,18.933972,142.09,141.91,13.26566025]
[1741187708504,18.933972,142.09,141.9,1.47910712]
[1741187708819,20.933972,142.05,141.88,0.033]
[1741187709124,18.933972,142.01,141.88,0.033]
[1741187709626,0.28432314,141.99,141.88,0.033]
[1741187709823,2.1129,141.98,141.88,0.033]
[1741187710028,2.1129,141.98,141.88,50.26438158]
[1741187710211,18.933972,141.97,141.88,0.033]
[1741187710922,25.99485925,141.97,141.88,0.033]
[1741187711526,2.435,142.04,141.9,0.28432314]
[1741187711826,2.435,142.09,141.95,0.28432314]
[1741187712130,0.03,142.11,142.0,48.75188797]
[1741187712333,0.03,142.11,142.03,0.28432314]
[1741187712519,0.03,142.11,142.03,50.51405732]
[1741187712712,0.03,142.11,142.05,0.28432314]
[1741187712917,0.03,142.11,142.06,1.47762053]
[1741187713113,0.03,142.11,142.07,0.28432314]
[1741187713308,0.03,142.11,142.05,0.28432314]
[1741187713502,0.03,142.11,142.07,312.0]
[1741187713707,10.66663752,142.08,142.07,312.0]
[1741187715224,10.66663752,142.08,141.98,9.06]
[1741187715424,10.66663752,142.08,142.0,0.14216157]
[1741187715619,10.66663752,142.08,142.01,1.47802896]
[1741187716133,10.66663752,142.08,142.02,49.03621111]
[1741187716334,10.66663752,142.08,142.01,8.51972896]
[1741187716335,10.66663752,142.08,142.04,0.28432314]
[1741187717026,0.03,142.11,142.03,1.4776663]
[1741187717227,2.141,142.11,142.0,0.28432314]
[1741187717419,18.933972,142.1,141.97,1.47817819]
[1741187717618,18.933972,142.1,141.94,7.0451]
[1741187717831,2.1113,142.09,141.96,55.79608797]
[1741187718119,5.3076,142.11,142.02,0.28432314]
[1741187718120,0.03,142.11,142.02,0.28432314]
[1741187718547,0.03,142.11,142.01,1.47797061]
[1741187718548,0.03,142.11,142.03,1.47797061]
[1741187719142,0.03,142.11,142.04,0.28432314]
[1741187719353,0.03,142.11,142.05,1.47764786]
[1741187719647,0.03,142.11,142.07,48.75188797]
[1741187719939,0.03,142.11,142.09,0.28432314]
[1741187720250,0.03,142.11,142.05,0.14216157]
[1741187720418,0.03,142.11,142.05,1.47752677]
[1741187720618,0.03,142.11,142.02,0.17516157]
[1741187720822,0.03,142.11,142.04,0.28432314]
[1741187721028,0.03,142.11,142.06,0.28432314]
[1741187721227,0.03,142.11,142.07,1.47748889]
[1741187721430,0.03,142.11,142.08,312.0]
[1741187722847,0.03,142.11,142.09,1.47763496]
[1741187723041,0.03,142.11,142.1,0.28432314]
[1741187723219,0.03,142.11,142.1,49.03621111]
[1741187723415,0.03,142.11,142.1,67.68585997]
[1741187723727,0.03,142.12,142.11,67.68585997]
[1741187723935,0.03,142.12,142.11,69.16229645]
[1741187724118,0.03,142.12,142.11,76.19909645]
[1741187724323,0.03,142.2,142.12,18.933972]
[1741187724623,0.03,142.2,142.14,0.28432314]
[1741187724845,0.03,142.2,142.15,1.47663651]
[1741187725055,0.03,142.2,142.16,0.28432314]
[1741187725357,0.03,142.2,142.18,0.28432314]
[1741187725520,0.03,142.2,142.18,1.76059038]
[1741187726234,0.03,142.2,142.19,319.31712314]
[1741187726431,0.03,142.2,142.19,368.06901111]
[1741187726634,0.03,142.2,142.19,56.06901111]
[1741187726836,0.03,142.26,142.22,0.28432314]
[1741187727035,0.03,142.26,142.25,49.03621111]
[1741187727252,0.03,142.26,142.23,1.47540637]
[1741187727457,0.03,142.26,142.2,1.76017231]
[1741187727670,0.03,142.26,142.17,1.76048133]
[1741187727968,0.03,142.26,142.16,1.47637286]
[1741187728279,0.03,142.26,142.18,0.28432314]
[1741187728563,0.03,142.26,142.2,0.28432314]
[1741187728769,0.03,142.26,142.2,1.4758708]
[1741187729369,0.03,142.26,142.21,0.28432314]
[1741187729599,0.03,142.26,142.21,312.0]
[1741187729875,0.03,142.26,142.16,49.03621111]
[1741187730094,0.03,142.26,142.18,0.28432314]
[1741187730372,0.03,142.26,142.21,0.28432314]
[1741187730570,0.03,142.26,142.23,0.28432314]
[1741187730739,0.03,142.26,142.24,1.47578769]
[1741187731267,0.03,142.26,142.22,1.47566258]
[1741187731574,0.03,142.26,142.21,0.28432314]
[1741187731745,0.03,142.26,142.2,1.4758974]
[1741187732266,0.03,142.26,142.18,1.47610436]
[1741187732578,18.933972,142.24,142.1,4.7108]
[1741187732768,18.933972,142.24,142.1,313.47710674]
[1741187733069,18.933972,142.24,142.11,0.28432314]
[1741187733273,18.933972,142.24,142.13,0.28432314]
[1741187733486,18.64964886,142.24,142.13,1.76108937]
[1741187733663,0.28432314,142.23,142.11,50.2286542]
[1741187733869,18.64964886,142.24,142.12,0.14216157]
[1741187734064,18.64964886,142.24,142.13,1.47678384]
[1741187734065,0.28432314,142.23,142.13,1.47678384]
[1741187734394,18.933972,142.21,142.1,1.47678384]
[1741187734681,7.3829,142.22,142.11,49.03621111]
[1741187734682,2.1094,142.22,142.11,49.03621111]
[1741187734868,2.1091,142.24,142.13,0.28432314]
[1741187735069,18.64964886,142.24,142.14,1.47663599]
[1741187735375,11.9877,142.25,142.15,0.28432314]
[1741187735577,0.03,142.26,142.17,49.03621111]
[1741187735778,0.03,142.26,142.19,49.03621111]
[1741187735984,0.03,142.26,142.21,0.28432314]
[1741187736154,0.03,142.26,142.22,1.47591527]
[1741187736355,0.03,142.26,142.23,312.0]
[1741187736666,0.03,142.26,142.19,0.14216157]
[1741187736873,0.03,142.26,142.13,50.0]
[1741187736874,0.03,142.26,142.15,1.47622271]
[1741187737178,0.03,142.26,142.14,1.4766606]
[1741187737383,0.03,142.26,142.14,8.5118606]
[1741187737573,0.03,142.26,142.15,0.28432314]
[1741187737774,0.03,142.26,142.17,0.28432314]
[1741187737976,0.03,142.26,142.16,1.47640838]
[1741187738271,0.03,142.26,142.14,1.47656551]
[1741187738458,0.03,142.26,142.12,48.75188797]
[1741187738459,0.03,142.26,142.12,1.47672382]
[1741187738659,18.933972,142.24,142.07,8.51550759]
[1741187738877,20.933972,142.24,142.07,1.47690759]
[1741187739052,20.933972,142.24,142.05,1.47733482]
[1741187739053,9.1304,142.19,142.05,1.47733482]
[1741187739258,9.1304,142.19,142.02,0.033]
[1741187739259,0.14216157,142.17,142.02,0.033]
[1741187739682,0.14216157,142.17,142.02,312.033]
[1741187739876,0.14216157,142.17,142.02,319.0741]
[1741187741280,0.14216157,142.14,142.03,1.47792175]
[1741187741578,0.14216157,142.14,142.02,312.17516157]
[1741187741786,18.79181043,142.13,142.02,312.033]
[1741187742078,0.28432314,142.13,142.02,312.033]
[1741187742480,18.933972,142.11,142.02,0.033]
[1741187742808,18.933972,142.09,142.02,0.033]
[1741187743101,18.933972,142.09,141.92,8.52488082]
[1741187743305,25.68734627,142.09,141.92,1.47878082]
[1741187743802,25.68734627,142.09,141.93,18.933972]
[1741187744102,25.68734627,142.09,141.92,8.52478082]
[1741187744103,0.14216157,142.09,141.97,0.28432314]
[1741187744303,9.6327,142.1,141.99,18.933972]
[1741187744492,2.1113,142.09,142.0,1.47820552]
[1741187744804,0.28432314,142.08,141.93,1.47822398]
[1741187744981,18.933972,142.08,141.94,0.28432314]
[1741187745176,18.933972,142.08,141.95,1.47871167]
[1741187745474,18.933972,142.08,141.95,312.0]
[1741187746306,0.28432314,142.08,141.95,312.0]
[1741187746505,0.28432314,142.06,141.92,18.64964886]
[1741187746689,18.933972,142.06,141.9,1.51210209]
[1741187746880,18.933972,142.06,141.91,18.79181043]
[1741187747081,18.933972,142.06,141.92,0.14216157]
[1741187747300,0.28432314,142.06,141.94,18.933972]
[1741187747689,18.933972,142.06,141.93,1.47905552]
[1741187748101,18.933972,142.06,141.91,1.47889404]
[1741187748508,0.28432314,142.06,141.91,1.47889404]
[1741187748682,0.28432314,142.06,141.9,0.033]
[1741187748683,18.933972,142.04,141.9,0.033]
[1741187750505,0.28432314,142.02,141.9,0.033]
[1741187750696,0.28432314,142.02,141.91,1.47929534]
[1741187751006,2.1122,142.03,141.92,18.933972]
[1741187751208,14.7848,142.05,141.94,67.68585997]
[1741187751393,12.2157,142.05,141.95,50.23036709]
[1741187751588,12.2157,142.05,141.96,0.28432314]
[1741187751790,11.7229,142.1,141.98,18.933972]
[1741187751996,11.7229,142.1,141.99,1.4783207]
[1741187752506,13.8341,142.1,141.98,1.62040543]
[1741187752708,0.28432314,142.09,142.0,312.0]
[1741187753004,18.933972,142.09,141.93,12.0814]
[1741187753208,18.933972,142.09,141.92,7.046]
[1741187753503,18.933972,142.09,141.92,8.5249387]
[1741187753701,18.933972,142.09,141.93,18.933972]
[1741187753895,18.933972,142.09,141.95,18.933972]
[1741187754099,19.112,142.1,141.97,18.933972]
[1741187754486,19.112,142.1,141.97,25.977372]
[1741187754688,0.28432314,142.09,141.97,25.977372]
[1741187754884,18.933972,142.09,141.96,1.47855875]
[1741187755110,18.933972,142.09,141.95,1.47849524]
[1741187755409,18.933972,142.09,141.96,0.28432314]
[1741187755410,0.28432314,142.09,141.96,0.28432314]
[1741187755705,13.8341,142.1,141.98,18.933972]
[1741187755927,11.7229,142.1,142.0,18.933972]
[1741187756129,9.1538,142.1,142.02,18.933972]
[1741187756431,2.1109,142.12,142.03,1.47773737]
[1741187756599,2.1105,142.14,142.01,1.47796761]
[1741187756927,5.2772,142.12,142.01,1.47796761]
[1741187757294,0.28432314,142.11,141.99,0.17516157]
[1741187757494,18.933972,142.11,141.99,0.033]
[1741187758600,0.28432314,142.09,141.99,0.033]
[1741187759202,0.28432314,142.07,141.99,0.033]
[1741187759391,0.28432314,142.05,141.99,0.033]
[1741187759641,18.933972,142.05,141.99,0.033]
[1741187759814,18.933972,142.05,141.9,0.033]
[1741187760124,18.933972,142.05,141.9,18.966972]
[1741187760294,18.933972,142.05,141.92,18.933972]
[1741187760295,0.28432314,142.05,141.92,18.933972]
[1741187760488,2.5457,142.06,141.94,18.933972]
[1741187760706,2.1119,142.05,141.96,18.933972]
[1741187760892,2.1119,142.05,141.97,1.4784374]
[1741187761303,7.3917,142.05,141.95,1.47844991]
[1741187761499,2.1119,142.05,141.95,1.47844991]
[1741187761805,0.28432314,142.04,141.92,1.47864225]
[1741187762330,7.3917,142.05,141.92,1.47864225]
[1741187762532,7.3917,142.05,141.93,18.933972]
[1741187762696,5.2798,142.05,141.96,312.0]
[1741187762897,2.1116,142.07,141.97,1.47855855]
[1741187762898,7.3906,142.07,141.97,1.47855855]
[1741187763254,7.3906,142.07,141.93,18.933972]
[1741187763531,7.3906,142.07,141.95,18.933972]
[1741187763691,7.3906,142.07,141.96,1.47843309]
[1741187763897,0.28432314,142.06,141.94,0.14216157]
[1741187764095,0.28432314,142.06,141.94,18.933972]
[1741187764332,0.28432314,142.06,141.95,1.47882052]
[1741187764510,17.9487,142.07,141.94,1.62082829]
[1741187764712,0.28432314,142.06,141.95,0.14216157]
[1741187765023,7.3906,142.07,141.96,1.47877139]
[1741187765330,18.933972,142.06,141.9,0.033]
[1741187765506,18.933972,142.06,141.9,7.0801]
[1741187765823,18.933972,142.06,141.91,18.79181043]
[1741187766037,0.28432314,142.06,141.93,312.0]
[1741187766236,18.933972,142.06,141.93,312.0]
[1741187766451,0.28432314,142.06,141.94,18.79181043]
[1741187766614,28.5068,142.07,141.95,0.14216157]
[1741187766812,0.14216157,142.06,141.95,0.14216157]
[1741187767019,7.3906,142.07,141.96,1.47877059]
[1741187767442,7.3906,142.07,141.97,18.933972]
[1741187767644,2.1116,142.07,141.99,0.28432314]
[1741187767948,2.1116,142.07,142.0,1.47809143]
[1741187768154,7.3906,142.07,141.96,1.47820085]
[1741187768327,7.3906,142.07,141.91,1.47898026]
[1741187768645,7.3906,142.07,141.95,18.933972]
[1741187768814,7.3906,142.07,141.97,18.933972]
[1741187769243,7.3906,142.07,141.99,18.933972]
[1741187769552,2.1116,142.07,142.02,312.0]
[1741187769912,9.8071,142.08,142.02,312.0]
[1741187770131,0.03,142.09,142.02,312.0]
[1741187770444,18.963972,142.09,141.96,0.17516157]
[1741187770743,2.1114,142.08,141.97,20.41261094]
[1741187771638,2.1413,142.09,141.97,20.41261094]
[1741187771833,0.03,142.09,141.98,48.75188797]
[1741187772047,2.1413,142.09,141.99,20.41197691]
[1741187772754,0.03,142.09,142.0,0.14216157]
[1741187773062,0.03,142.09,142.01,1.47811728]
[1741187773259,0.03,142.09,142.02,330.933972]
[1741187773446,0.31432314,142.09,142.02,312.0]
[1741187773629,0.31432314,142.09,141.96,0.033]
[1741187773934,18.963972,142.09,141.96,0.033]
[1741187774322,0.31432314,142.09,141.97,0.14216157]
[1741187774532,0.31432314,142.09,141.97,1.62058947]
[1741187774933,0.03,142.09,141.99,0.14216157]
[1741187775155,2.1413,142.09,141.99,1.47804021]
[1741187775538,2.1413,142.09,141.98,20.41216594]
[1741187775973,2.1413,142.09,141.99,18.933972]
[1741187776133,7.4196,142.09,141.99,18.933972]
[1741187776461,0.28432314,142.08,141.97,0.14216157]
[1741187776668,0.28432314,142.08,141.99,312.0]
[1741187776966,7.3906,142.07,141.99,312.0]
[1741187777262,7.3906,142.07,141.96,0.033]
[1741187777440,7.3906,142.07,141.96,1.51160285]
[1741187777645,0.28432314,142.06,141.96,0.033]
[1741187777829,0.28432314,142.04,141.96,0.033]
[1741187778031,18.933972,142.04,141.96,0.033]
[1741187779062,7.3927,142.03,141.96,0.033]
[1741187779266,2.1122,142.03,141.96,0.033]
[1741187780082,2.1122,142.03,141.99,312.0]
[1741187780248,5.2794,142.07,141.99,312.0]
[1741187780446,2.1117,142.06,141.99,312.0]
[1741187780851,5.3083,142.09,141.98,18.933972]
[1741187781049,2.1413,142.09,142.0,0.28432314]
[1741187781250,2.1413,142.09,142.02,18.933972]
[1741187781458,2.1413,142.09,142.02,0.28432314]
[1741187781664,2.1413,142.09,142.0,1.47805964]
[1741187781950,2.1413,142.09,142.01,0.28432314]
[1741187782181,0.03,142.05,142.03,0.28432314]
[1741187782481,0.03,142.05,142.01,1.47791273]
[1741187782652,0.03,142.05,142.0,0.28432314]
[1741187782979,0.03,142.05,142.02,7.32542314]
[1741187783154,0.03,142.05,142.03,1.47793872]
[1741187783481,0.03,142.05,142.01,1.47790287]
[1741187783682,0.03,142.05,142.0,1.76245707]
[1741187783852,0.03,142.05,142.04,312.0]
[1741187784746,0.03,142.05,141.98,0.14216157]
[1741187785075,0.03,142.05,141.97,1.47828207]
[1741187785275,0.03,142.05,141.96,0.033]
[1741187785577,9.1557,142.04,141.96,0.033]
[1741187786361,0.28432314,142.03,141.96,0.033]
[1741187786942,2.1123,142.02,141.96,0.033]
[1741187787146,7.3932,142.02,141.96,0.033]
[1741187787352,9.1557,142.04,141.96,0.033]
[1741187787555,2.112,142.04,142.0,312.0]
[1741187788196,2.112,142.04,141.96,0.033]
[1741187788364,2.112,142.04,141.97,0.28432314]
[1741187788691,0.03,142.05,141.97,69.16430731]
[1741187788861,0.03,142.05,142.01,0.28432314]
[1741187789190,0.03,142.05,142.02,1.47785194]
[1741187789374,0.03,142.05,142.01,0.28432314]
[1741187789553,0.03,142.05,142.0,1.47802864]
[1741187789760,0.03,142.05,141.99,1.4782465]
[1741187790086,0.03,142.05,141.98,1.76267902]
[1741187790278,0.03,142.05,141.98,0.28432314]
[1741187790477,9.1552,142.04,141.96,0.033]
[1741187791061,2.1122,142.03,141.96,312.033]
[1741187791993,7.3927,142.03,141.96,312.033]
[1741187792298,7.3927,142.03,141.96,0.033]
[1741187792791,2.1122,142.03,141.96,0.033]
[1741187794766,11.2673,142.04,141.96,0.033]
[1741187795266,11.2673,142.04,141.97,312.0]
[1741187795763,0.03,142.05,141.99,0.28432314]
[1741187795964,0.03,142.05,142.0,1.47832927]
[1741187796604,0.03,142.05,141.99,1.76248886]
[1741187796972,0.03,142.05,142.01,0.28432314]
[1741187797301,0.03,142.05,142.01,1.76238389]
[1741187797499,0.03,142.05,142.01,0.28432314]
[1741187798178,0.03,142.05,142.02,1.47816507]
[1741187798383,0.03,142.05,142.03,18.933972]
[1741187798577,0.03,142.05,142.04,312.28432314]
[1741187798779,0.03,142.05,142.04,312.0]
[1741187798978,0.03,142.05,142.04,312.28432314]
[1741187799176,0.03,142.05,142.04,25.974172]
[1741187799387,0.03,142.05,142.04,20.41139397]
[1741187799596,0.03,142.05,142.04,0.28432314]
[1741187799785,0.03,142.05,141.98,13.33590153]
[1741187799988,0.03,142.05,141.98,6.29290153]
[1741187800266,0.03,142.05,141.99,1.47847024]
[1741187800600,0.03,142.05,141.97,1.47830849]
[1741187800778,0.03,142.05,141.96,8.55522005]
[1741187801190,0.03,142.05,141.98,0.28432314]
[1741187801393,0.03,142.05,142.0,0.28432314]
[1741187801811,0.03,142.05,142.01,1.47825614]
[1741187802110,0.03,142.05,142.0,0.28432314]
[1741187802409,0.03,142.05,142.02,312.0]
[1741187802622,0.03,142.05,142.03,0.28432314]
[1741187802921,0.03,142.05,142.04,0.28432314]
[1741187803916,0.03,142.05,142.04,18.933972]
[1741187804086,0.03,142.05,142.02,1.76196647]
[1741187804416,0.03,142.05,142.02,1.47764333]
[1741187804608,0.03,142.05,141.99,1.47799497]
[1741187804917,0.03,142.05,142.0,0.28432314]
[1741187805114,0.03,142.05,141.99,1.47799497]
[1741187805297,0.03,142.05,142.0,0.28432314]
[1741187805500,0.03,142.05,142.02,0.28432314]
[1741187805694,0.03,142.05,142.02,312.28432314]
[1741187805897,0.03,142.05,142.02,312.0]
[1741187806186,0.03,142.05,142.03,1.76243885]
[1741187806709,0.03,142.05,142.04,18.64964886]
[1741187806879,0.03,142.05,142.03,1.62027728]
[1741187807083,0.03,142.05,142.01,1.47772119]
[1741187807492,0.03,142.05,142.0,0.14216157]
[1741187807695,0.03,142.05,141.99,1.47820349]
[1741187807897,0.03,142.05,141.97,0.033]
[1741187807898,0.03,142.05,141.97,1.51138262]
[1741187808096,0.03,142.05,141.97,0.033]
[1741187808516,0.03,142.05,141.97,1.51169743]
[1741187808734,0.03,142.05,141.97,0.033]
[1741187808892,0.28432314,142.03,141.97,0.033]
[1741187809089,18.933972,142.03,141.97,0.033]
[1741187809813,18.933972,142.03,141.96,0.033]
[1741187810393,17.955,142.02,141.96,0.033]
[1741187810723,7.3932,142.02,141.96,0.033]
[1741187810914,2.1123,142.02,141.96,0.033]
[1741187811120,10.0692,142.04,141.96,0.033]
[1741187811419,12.1812,142.04,141.96,0.033]
[1741187811719,0.28432314,142.03,141.96,0.033]
[1741187812216,12.1812,142.04,141.96,0.033]
[1741187812402,18.933972,142.03,141.96,0.033]
[1741187813294,0.28432314,142.03,141.96,0.033]
[1741187814318,18.933972,142.01,141.96,0.033]
[1741187814500,0.28432314,142.01,141.96,0.033]
[1741187815118,2.1123,142.02,141.96,0.033]
[1741187815319,2.1122,142.03,141.96,312.033]
[1741187816040,12.1812,142.04,141.96,312.033]
[1741187816339,12.1812,142.04,141.96,0.033]
[1741187816643,0.03,142.05,141.98,0.28432314]
[1741187816822,0.03,142.05,142.0,0.28432314]
[1741187817022,0.03,142.05,142.0,1.76251195]
[1741187818340,0.03,142.05,142.01,7.0417]
[1741187818538,0.03,142.05,142.0,8.52038881]
[1741187818743,0.03,142.05,142.0,1.47818881]
[1741187818934,0.03,142.05,141.97,1.47822533]
[1741187819242,0.03,142.05,141.96,6.39713459]
[1741187819412,0.03,142.05,141.96,4.9185]
[1741187819614,0.03,142.05,141.97,20.4126805]
[1741187820265,0.03,142.05,141.97,1.4787085]
[1741187820434,0.03,142.05,141.96,0.033]
[1741187820935,0.28432314,142.03,141.96,0.033]
[1741187821134,21.509872,142.03,141.9,0.033]
[1741187822462,18.933972,142.01,141.9,0.033]
[1741187822643,18.933972,141.99,141.9,0.033]
[1741187823355,0.28432314,141.99,141.9,0.033]
[1741187823931,18.933972,141.99,141.9,0.033]
[1741187824346,18.933972,141.97,141.9,0.033]
[1741187825061,0.28432314,141.97,141.9,0.033]
[1741187825238,18.933972,141.97,141.9,0.033]
[1741187825550,0.28432314,141.97,141.9,0.033]
[1741187826135,18.933972,141.97,141.9,0.033]
[1741187826351,18.933972,141.95,141.9,0.033]
[1741187826542,18.933972,141.95,141.82,312.28432314]
[1741187826543,18.933972,141.93,141.82,312.0]
[1741187826730,18.933972,141.93,141.81,0.033]
[1741187827863,18.933972,141.91,141.81,0.033]
[1741187828068,18.933972,141.89,141.81,0.033]
[1741187828557,0.28432314,141.87,141.81,0.033]
[1741187828856,7.4005,141.88,141.81,0.033]
[1741187829025,0.28432314,141.87,141.81,0.033]
[1741187829225,18.933972,141.87,141.81,0.033]
[1741187829463,0.14216157,141.85,141.81,0.033]
[1741187829765,18.933972,141.85,141.76,1.9768359]
[1741187830465,0.28432314,141.8,141.76,1.9768359]
[1741187830762,0.28432314,141.8,141.66,1.48136119]
[1741187830946,0.28432314,141.8,141.66,1.4816686]
[1741187831131,0.28432314,141.78,141.66,1.4816686]
[1741187831335,0.28432314,141.76,141.6,1.48167422]
[1741187831651,0.28432314,141.76,141.61,7.0616]
[1741187831861,0.28432314,141.76,141.63,18.64964886]
[1741187832158,8.96,141.77,141.64,1.48185963]
[1741187832464,8.96,141.77,141.59,8.54415287]